bitfinex-derivatives/quotes_BNBF0:USTF0_20260110
["timestamp","ask_amount","ask_price","bid_price","bid_amount"]
[1768063207728,2.72679797,910.24,908.69,0.69145578]
[1768063207925,2.72679797,910.24,908.7,0.69145578]
[1768063208125,2.72679797,910.24,908.71,0.69145578]
[1768063208427,2.72679797,910.24,908.72,0.69145578]
[1768063208628,2.72679797,910.24,908.73,0.69145578]
[1768063208824,2.72679797,910.24,908.74,0.69145578]
[1768063209025,2.72679797,910.24,908.59,1.667]
[1768063209231,2.72679797,910.24,908.6,0.6914317]
[1768063209424,2.72679797,910.24,908.61,0.6914317]
[1768063209628,2.72679797,910.24,908.62,0.6914317]
[1768063209827,2.72679797,910.24,908.63,0.6914317]
[1768063210027,2.72679797,910.24,908.64,0.6914317]
[1768063210231,2.72679797,910.24,908.65,0.6914317]
[1768063210432,2.72679797,910.24,908.66,0.6914317]
[1768063210631,2.72679797,910.24,908.67,0.6914317]
[1768063210831,2.72679797,910.24,908.68,0.6914317]
[1768063211029,2.72679797,910.24,908.69,0.6914317]
[1768063211332,0.19130024,910.37,908.7,0.6914317]
[1768063211529,0.19130024,910.37,908.71,0.6914317]
[1768063211731,0.19130024,910.37,908.72,0.6914317]
[1768063211927,0.19130024,910.37,908.73,0.6914317]
[1768063212132,0.19130024,910.37,908.74,0.6914317]
[1768063212431,0.19130024,910.37,908.75,0.6914317]
[1768063212632,0.19130024,910.37,908.76,0.6914317]
[1768063212832,0.19130024,910.37,908.77,0.6914317]
[1768063213032,0.19130024,910.37,908.78,0.6914317]
[1768063213333,0.19130024,910.37,908.79,0.6914317]
[1768063213528,0.19130024,910.37,908.8,0.6914317]
[1768063213729,0.19130024,910.37,908.81,0.6914317]
[1768063213929,0.19130024,910.37,908.82,0.6914317]
[1768063214128,0.19130024,910.37,908.83,0.6914317]
[1768063214328,0.19130024,910.37,908.84,0.6914317]
[1768063214629,0.19130024,910.37,908.85,0.6914317]
[1768063214827,0.19130024,910.37,908.86,0.6914317]
[1768063215029,0.19130024,910.37,908.87,0.6914317]
[1768063215331,0.19130024,910.37,908.88,0.6914317]
[1768063215631,0.19130024,910.37,908.89,0.6914317]
[1768063215828,0.19130024,910.37,908.9,0.6914317]
[1768063216035,0.19130024,910.37,908.91,0.6914317]
[1768063216328,0.19130024,910.37,908.92,0.6914317]
[1768063216530,0.19130024,910.37,908.93,0.6914317]
[1768063216729,0.19130024,910.37,908.94,0.6914317]
[1768063217032,0.19130024,910.37,908.95,0.6914317]
[1768063217332,0.19130024,910.37,908.66,0.82510904]
[1768063217632,0.19130024,910.37,908.67,0.69148876]
[1768063217829,0.19130024,910.37,908.68,0.69148876]
[1768063218029,0.19130024,910.37,908.69,0.69148876]
[1768063218233,0.19130024,910.37,908.7,0.69148876]
[1768063218433,0.19130024,910.37,908.71,0.69148876]
[1768063218633,0.19130024,910.37,908.72,0.69148876]
[1768063218830,0.19130024,910.37,908.73,0.69148876]
[1768063219030,0.19130024,910.37,908.74,0.69148876]
[1768063219232,0.19130024,910.37,908.75,0.69148876]
[1768063219436,0.19130024,910.37,908.76,0.69148876]
[1768063219733,0.19130024,910.37,908.77,0.69148876]
[1768063219930,0.19130024,910.37,908.78,0.69148876]
[1768063220136,0.19130024,910.37,908.66,0.82510904]
[1768063220137,0.19130024,910.37,908.79,0.69148876]
[1768063220332,0.19130024,910.37,908.8,0.69148876]
[1768063220534,0.19130024,910.37,908.81,0.69148876]
[1768063220734,0.19130024,910.37,908.82,0.69148876]
[1768063220932,0.19130024,910.37,908.83,0.69148876]
[1768063221133,0.19130024,910.37,908.84,0.69148876]
[1768063221334,0.19130024,910.37,908.85,0.69148876]
[1768063221535,0.19130024,910.37,908.86,0.69148876]
[1768063221734,0.19130024,910.37,908.59,1.667]
[1768063222032,2.72679797,910.35,908.6,0.69155682]
[1768063222234,2.72679797,910.35,908.61,0.69155682]
[1768063222430,2.72679797,910.35,908.62,0.69155682]
[1768063222637,2.72679797,910.35,908.63,0.69155682]
[1768063222834,2.72679797,910.35,908.64,0.69155682]
[1768063223032,2.72679797,910.35,908.65,0.69155682]
[1768063223236,2.72679797,910.35,908.59,1.667]
[1768063223237,2.72679797,910.35,908.66,0.69155682]
[1768063223434,2.72679797,910.35,908.67,0.69155682]
[1768063223633,2.72679797,910.35,908.68,0.69155682]
[1768063223834,2.72679797,910.35,908.69,0.69155682]
[1768063224038,2.72679797,910.35,908.7,0.69155682]
[1768063224239,2.72679797,910.35,908.71,0.69155682]
[1768063224435,2.72679797,910.35,908.72,0.69155682]
[1768063224636,2.72679797,910.35,908.73,0.69155682]
[1768063224841,2.72679797,910.35,908.74,0.69155682]
[1768063225136,2.72679797,910.35,908.75,0.69155682]
[1768063225441,2.72679797,910.34,908.76,0.69155682]
[1768063225641,2.72679797,910.34,908.77,0.69155682]
[1768063225840,2.72679797,910.34,908.78,0.69155682]
[1768063226042,2.72679797,910.34,908.79,0.69155682]
[1768063226241,2.72679797,910.34,908.8,0.69155682]
[1768063226438,2.72679797,910.34,908.81,0.69155682]
[1768063226642,2.72679797,910.34,908.82,0.69155682]
[1768063226938,2.72679797,910.34,908.83,0.69155682]
[1768063227142,2.72679797,910.34,908.84,0.69155682]
[1768063227341,2.72679797,910.34,908.85,0.69155682]
[1768063227536,2.72679797,910.34,908.86,0.69155682]
[1768063227739,2.72679797,910.34,908.87,0.69155682]
[1768063227939,2.72679797,910.34,908.59,1.667]
[1768063228138,2.72679797,910.34,908.6,0.69175049]
[1768063228342,2.72679797,910.34,908.61,0.69175049]
[1768063228543,2.72679797,910.33,908.62,0.69175049]
[1768063228840,2.72679797,910.33,908.63,0.69175049]
[1768063229041,2.72679797,910.33,908.64,0.69175049]
[1768063229243,2.72679797,910.33,908.65,0.69175049]
[1768063229544,2.72679797,910.33,908.66,0.69175049]
[1768063229841,2.72679797,910.33,908.67,0.69175049]
[1768063230145,2.72679797,910.33,908.68,0.69175049]
[1768063230446,2.72679797,910.33,908.69,0.69175049]
[1768063230645,2.72679797,910.32,908.7,0.69175049]
[1768063230845,2.72679797,910.32,908.71,0.69175049]
[1768063231045,2.72679797,910.32,908.72,0.69175049]
[1768063231246,2.72679797,910.27,908.73,0.69175049]
[1768063231441,2.72679797,910.27,908.74,0.69175049]
[1768063231640,2.72679797,910.31,908.75,0.69175049]
[1768063231843,2.72679797,910.31,908.76,0.69175049]
[1768063232042,2.72679797,910.31,908.77,0.69175049]
[1768063232248,2.72679797,910.31,908.78,0.69175049]
[1768063232445,2.72679797,910.31,908.79,0.69175049]
[1768063232646,2.72679797,910.32,908.8,0.69175049]
[1768063232844,2.72679797,910.32,908.81,0.69175049]
[1768063233147,2.72679797,910.31,908.82,0.69175049]
[1768063233444,2.72679797,910.31,908.83,0.69175049]
[1768063233646,2.72679797,910.31,908.84,0.69175049]
[1768063233845,2.72679797,910.32,908.85,0.69175049]
[1768063234147,2.72679797,910.32,908.59,1.667]
[1768063234348,2.72679797,910.32,908.6,0.69241821]
[1768063234644,2.72679797,910.32,908.61,0.69241821]
[1768063234846,2.72679797,910.32,908.62,0.69241821]
[1768063235049,2.72679797,910.32,908.63,0.69241821]
[1768063235350,2.72679797,910.31,908.64,0.69241821]
[1768063235544,2.72679797,910.31,908.65,0.69241821]
[1768063235747,2.72679797,910.31,908.66,0.69241821]
[1768063236046,2.72679797,910.31,908.67,0.69241821]
[1768063236346,2.72679797,910.31,908.68,0.69241821]
[1768063236546,2.72679797,910.31,908.69,0.69241821]
[1768063236750,2.72679797,910.31,908.7,0.69241821]
[1768063237051,2.72679797,910.31,908.71,0.69241821]
[1768063237247,2.72679797,910.31,908.72,0.69241821]
[1768063237447,2.72679797,910.31,908.73,0.69241821]
[1768063237648,2.72679797,910.31,908.74,0.69241821]
[1768063237848,2.72679797,910.31,908.75,0.69241821]
[1768063238049,2.72679797,910.31,908.76,0.69241821]
[1768063238351,2.72679797,910.31,908.77,0.69241821]
[1768063238553,2.72679797,910.32,908.78,0.69241821]
[1768063238751,2.72679797,910.32,908.79,0.69241821]
[1768063238952,2.72679797,910.32,908.8,0.69241821]
[1768063239248,2.72679797,910.32,908.81,0.69241821]
[1768063239448,2.72679797,910.32,908.82,0.69241821]
[1768063239649,2.72679797,910.32,908.53,0.82510904]
[1768063239852,2.72679797,910.32,908.54,0.69214347]
[1768063240053,2.72679797,910.32,908.55,0.69214347]
[1768063240253,2.72679797,910.32,908.56,0.69214347]
[1768063240454,2.72679797,910.32,908.57,0.69214347]
[1768063240753,2.72679797,910.32,908.58,0.69214347]
[1768063241049,2.72679797,910.32,908.59,0.69214347]
[1768063241253,2.72679797,910.32,908.6,0.69214347]
[1768063241451,2.72679797,910.32,908.61,0.69214347]
[1768063241653,2.72679797,910.2,908.62,0.69214347]
[1768063241853,2.72679797,910.2,908.63,0.69214347]
[1768063242153,2.72679797,910.2,908.64,0.69214347]
[1768063242353,2.72679797,910.2,908.65,0.69214347]
[1768063242554,2.72679797,910.2,908.66,0.69214347]
[1768063242850,2.72679797,910.2,908.67,0.69214347]
[1768063243049,2.72679797,910.2,908.68,0.69214347]
[1768063243249,2.72679797,910.2,908.69,0.69214347]
[1768063243452,2.72679797,910.2,908.54,1.763]
[1768063243653,2.72679797,910.2,908.55,0.69203965]
[1768063243853,2.72679797,910.2,908.56,0.69203965]
[1768063244049,2.72679797,910.2,908.57,0.69203965]
[1768063244250,2.72679797,910.2,908.58,0.69203965]
[1768063244454,2.72679797,910.2,908.59,0.69203965]
[1768063244652,2.72679797,910.21,908.6,0.69203965]
[1768063244855,2.72679797,910.21,908.61,0.69203965]
[1768063245055,2.72679797,910.21,908.62,0.69203965]
[1768063245355,2.72679797,910.21,908.63,0.69203965]
[1768063245551,2.72679797,910.21,908.64,0.69203965]
[1768063245754,0.19130024,910.37,908.65,0.69203965]
[1768063245755,2.72679797,910.2,908.65,0.69203965]
[1768063245952,2.72679797,910.2,908.66,0.69203965]
[1768063246151,2.72679797,910.2,908.67,0.69203965]
[1768063246356,2.72679797,910.2,908.68,0.69203965]
[1768063246651,2.72679797,910.2,908.69,0.69203965]
[1768063246956,2.72679797,910.21,908.54,1.763]
[1768063247156,2.72679797,910.21,908.55,0.69199471]
[1768063247356,2.72679797,910.21,908.56,0.69199471]
[1768063247556,2.72679797,910.21,908.57,0.69199471]
[1768063247756,2.72679797,910.21,908.58,0.69199471]
[1768063247957,2.72679797,910.21,908.59,0.69199471]
[1768063248158,2.72679797,910.21,908.6,0.69199471]
[1768063248357,2.72679797,910.21,908.61,0.69199471]
[1768063248652,2.72679797,910.21,908.62,0.69199471]
[1768063248857,2.72679797,910.21,908.63,0.69199471]
[1768063249056,2.72679797,910.21,908.64,0.69199471]
[1768063249257,2.72679797,910.21,908.65,0.69199471]
[1768063249552,2.72679797,910.21,908.66,0.69199471]
[1768063249757,2.72679797,910.21,908.67,0.69199471]
[1768063249954,2.72679797,910.21,908.68,0.69199471]
[1768063250258,2.72679797,910.21,908.69,0.69199471]
[1768063250458,2.72679797,910.21,908.54,1.763]
[1768063250758,2.72679797,910.21,908.55,0.69195651]
[1768063250955,2.72679797,910.21,908.56,0.69195651]
[1768063251258,2.72679797,910.21,908.57,0.69195651]
[1768063251457,2.72679797,910.35,908.58,0.69195651]
[1768063251659,2.72679797,910.35,908.59,0.69195651]
[1768063251855,2.72679797,910.35,908.6,0.69195651]
[1768063252059,2.72679797,910.35,908.61,0.69195651]
[1768063252255,2.72679797,910.35,908.62,0.69195651]
[1768063252456,2.72679797,910.35,908.63,0.69195651]
[1768063252659,2.72679797,910.35,908.64,0.69195651]
[1768063252858,2.72679797,910.35,908.65,0.69195651]
[1768063253059,2.72679797,910.18,908.66,0.69195651]
[1768063253255,2.72679797,910.18,908.54,1.763]
[1768063253461,2.72679797,910.18,908.55,0.69177289]
[1768063253660,2.72679797,910.19,908.56,0.69177289]
[1768063253959,2.72679797,910.19,908.57,0.69177289]
[1768063254161,2.72679797,910.19,908.58,0.69177289]
[1768063254362,2.72679797,910.19,908.59,0.69177289]
[1768063254561,2.72679797,910.21,908.6,0.69177289]
[1768063254758,2.72679797,910.21,908.61,0.69177289]
[1768063254957,2.72679797,910.21,908.62,0.69177289]
[1768063255159,2.72679797,910.21,908.63,0.69177289]
[1768063255358,2.72679797,910.21,908.54,1.763]
[1768063255558,2.72679797,910.21,908.55,0.69143743]
[1768063255763,2.72679797,910.22,908.56,0.69143743]
[1768063255963,2.72679797,910.22,908.57,0.69143743]
[1768063256164,2.72679797,910.22,908.58,0.69143743]
[1768063256358,2.72679797,910.22,908.59,0.69143743]
[1768063256560,2.72679797,910.22,908.6,0.69143743]
[1768063256763,2.72679797,910.23,908.61,0.69143743]
[1768063256961,2.72679797,910.23,908.62,0.69143743]
[1768063257262,2.72679797,910.23,908.54,1.763]
[1768063257564,2.72679797,910.23,908.55,0.69120977]
[1768063257765,2.72679797,910.23,908.56,0.69120977]
[1768063257965,2.72679797,910.23,908.57,0.69120977]
[1768063258264,2.72679797,910.23,908.58,0.69120977]
[1768063258461,2.72679797,910.23,908.59,0.69120977]
[1768063258764,2.72679797,910.24,908.6,0.69120977]
[1768063259061,2.72679797,910.24,908.61,0.69120977]
[1768063259264,2.72679797,910.24,908.54,1.763]
[1768063259465,2.72679797,910.24,908.55,0.69104199]
[1768063259661,2.72679797,910.24,908.56,0.69104199]
[1768063259869,2.72679797,910.24,908.57,0.69104199]
[1768063260068,2.72679797,910.24,908.58,0.69104199]
[1768063260364,2.72679797,910.24,908.59,0.69104199]
[1768063260567,2.72679797,910.24,908.6,0.69104199]
[1768063260864,2.72679797,910.24,908.61,0.69104199]
[1768063261163,2.72679797,910.24,908.54,1.763]
[1768063261467,2.72679797,910.17,908.54,1.763]
[1768063261976,2.72679797,910.18,908.54,1.763]
[1768063266576,2.72679797,910.19,908.54,1.763]
[1768063268675,0.19139072,909.78,908.54,1.763]
[1768063275276,0.19139072,909.78,908.55,0.69063933]
[1768063275480,0.19139072,909.78,908.54,1.763]
[1768063275780,0.19139072,909.78,908.55,0.69063972]
[1768063275976,0.19139072,909.78,908.54,1.763]
[1768063276276,0.19139072,909.78,908.55,0.69063972]
[1768063276476,0.19139072,909.78,908.54,1.763]
[1768063277783,0.19139072,909.78,908.55,0.69060036]
[1768063277980,0.19139072,909.78,908.56,0.69060036]
[1768063278281,0.19139072,909.78,908.54,1.763]
[1768063278577,0.19139072,909.78,908.55,0.69062703]
[1768063278777,0.19139072,909.78,908.56,0.69062703]
[1768063278978,0.19139072,909.78,908.54,1.763]
[1768063279180,0.19139072,909.78,908.55,0.69062658]
[1768063279381,0.19139072,909.78,908.56,0.69062658]
[1768063279581,0.19139072,909.78,908.57,0.69062658]
[1768063279779,0.19139072,909.78,908.58,0.69062658]
[1768063279980,0.19139072,909.78,908.59,0.69062658]
[1768063280181,0.19139072,909.78,908.6,0.69062658]
[1768063280381,0.19139072,909.78,908.61,0.69062658]
[1768063280576,0.19139072,909.78,908.54,1.763]
[1768063280577,0.19139072,909.78,908.62,0.69062658]
[1768063280778,0.19139072,909.78,908.63,0.69062658]
[1768063280981,0.19139072,909.78,908.64,0.69062658]
[1768063281280,0.19139072,909.78,908.65,0.69062658]
[1768063281482,0.19139072,909.78,908.54,1.763]
[1768063281678,0.19139072,909.78,908.55,0.69057917]
[1768063281979,0.19139072,909.78,908.56,0.69057917]
[1768063282181,0.19139072,909.78,908.57,0.69057917]
[1768063282481,0.19139072,909.78,908.58,0.69057917]
[1768063282682,0.19139072,909.78,908.59,0.69057917]
[1768063282880,0.19139072,909.78,908.6,0.69057917]
[1768063283078,0.19139072,909.78,908.61,0.69057917]
[1768063283279,0.19139072,909.78,908.62,0.69057917]
[1768063283484,0.19139072,909.78,908.63,0.69057917]
[1768063283680,0.19139072,909.78,908.64,0.69057917]
[1768063283980,0.19139072,909.78,908.65,0.69057917]
[1768063284181,0.19139072,909.78,908.54,1.763]
[1768063284386,0.19139072,909.78,908.55,0.6905819]
[1768063284584,0.19139072,909.78,908.56,0.6905819]
[1768063284780,0.19139072,909.78,908.57,0.6905819]
[1768063284984,0.19139072,909.78,908.58,0.6905819]
[1768063285284,0.19139072,909.78,908.59,0.6905819]
[1768063285485,0.19139072,909.78,908.6,0.6905819]
[1768063285785,0.19139072,909.78,908.61,0.6905819]
[1768063285984,0.19139072,909.78,908.62,0.6905819]
[1768063286180,0.19139072,909.78,908.63,0.6905819]
[1768063286384,0.19139072,909.78,908.64,0.6905819]
[1768063286584,0.19139072,909.78,908.65,0.6905819]
[1768063286784,0.19139072,909.78,908.54,1.763]
[1768063286980,0.19139072,909.78,908.55,0.69056812]
[1768063287182,0.19139072,909.78,908.56,0.69056812]
[1768063287380,0.19139072,909.78,908.57,0.69056812]
[1768063287582,0.19139072,909.78,908.58,0.69056812]
[1768063287785,0.19139072,909.78,908.59,0.69056812]
[1768063287985,0.19139072,909.78,908.6,0.69056812]
[1768063288186,0.19139072,909.78,908.61,0.69056812]
[1768063288388,0.19139072,909.78,908.62,0.69056812]
[1768063288584,0.19139072,909.78,908.63,0.69056812]
[1768063288788,0.19139072,909.78,908.64,0.69056812]
[1768063288988,0.19139072,909.78,908.65,0.69056812]
[1768063289182,0.19139072,909.78,908.66,0.69056812]
[1768063289387,0.19139072,909.78,908.67,0.69056812]
[1768063289682,0.19139072,909.78,908.68,0.69056812]
[1768063289987,0.19139072,909.78,908.69,0.69056812]
[1768063290185,0.19139072,909.78,908.7,0.69056812]
[1768063290488,0.19139072,909.78,908.54,1.763]
[1768063290686,0.19139072,909.78,908.55,0.69015291]
[1768063290990,0.19139072,909.78,908.56,0.69015291]
[1768063291288,0.19139072,909.78,908.57,0.69015291]
[1768063291585,0.19139072,909.78,908.58,1.51526195]
[1768063291787,0.19139072,909.78,908.59,0.69015291]
[1768063292088,0.19139072,909.78,908.6,0.69015291]
[1768063292287,0.19139072,909.78,908.61,0.69015291]
[1768063292485,0.19139072,909.78,908.62,0.69015291]
[1768063292686,0.19139072,909.78,908.63,0.69015291]
[1768063292885,0.19139072,909.78,908.64,0.69015291]
[1768063293089,0.19139072,909.78,908.65,0.69015291]
[1768063293389,0.19139072,909.78,908.66,0.69015291]
[1768063293589,0.19139072,909.78,908.57,0.82510904]
[1768063293590,0.19139072,909.78,908.67,0.69015291]
[1768063293790,0.19139072,909.78,908.68,0.69015291]
[1768063293989,0.19139072,909.78,908.69,0.69015291]
[1768063294190,0.19139072,909.78,908.7,0.69015291]
[1768063294489,0.19139072,909.78,908.71,0.69015291]
[1768063294689,0.19139072,909.78,908.72,0.69015291]
[1768063294988,0.19139072,909.78,908.73,0.69015291]
[1768063295189,0.19139072,909.78,908.74,0.69015291]
[1768063295389,0.19139072,909.78,908.75,0.69015291]
[1768063295584,0.19139072,909.78,908.76,0.69015291]
[1768063295791,0.19139072,909.78,908.77,0.69015291]
[1768063295990,0.19139072,909.78,908.78,0.69015291]
[1768063296191,0.19139072,909.78,908.79,0.69015291]
[1768063296391,0.19139072,909.78,908.8,0.69015291]
[1768063296590,0.19139072,909.78,908.81,0.69015291]
[1768063296790,0.19139072,909.78,908.82,0.69015291]
[1768063296988,0.19139072,909.78,908.83,0.69015291]
[1768063297192,0.19139072,909.78,908.84,0.69015291]
[1768063297392,0.19139072,909.78,908.85,0.69015291]
[1768063297688,0.19139072,909.78,908.86,0.69015291]
[1768063297992,0.19139072,909.78,908.57,0.82510904]
[1768063298194,0.19139072,909.78,908.58,0.68987084]
[1768063298393,0.19139072,909.78,908.59,0.68987084]
[1768063298594,0.19139072,909.78,908.6,0.68987084]
[1768063298794,0.19139072,909.78,908.61,0.68987084]
[1768063298994,0.19139072,909.78,908.62,0.68987084]
[1768063299195,0.19139072,909.78,908.63,0.68987084]
[1768063299390,0.19139072,909.78,908.64,0.68987084]
[1768063299591,0.19139072,909.78,908.65,0.68987084]
[1768063299794,0.19139072,909.78,908.66,0.68987084]
[1768063300093,0.19139072,909.78,908.67,0.68987084]
[1768063300294,0.19139072,909.78,908.68,0.68987084]
[1768063300495,0.19139072,909.78,908.69,0.68987084]
[1768063300795,0.19139072,909.78,908.7,0.68987084]
[1768063300996,0.19139072,909.78,908.71,0.68987084]
[1768063301195,0.19139072,909.78,908.72,0.68987084]
[1768063301496,0.19139072,909.78,908.73,0.68987084]
[1768063301696,0.19139072,909.78,908.74,0.68987084]
[1768063301896,0.19139072,909.78,908.75,0.68987084]
[1768063302192,0.19139072,909.78,908.76,0.68987084]
[1768063302396,0.19139072,909.78,908.77,0.68987084]
[1768063302594,0.19139072,909.78,908.78,0.68987084]
[1768063302795,0.19139072,909.78,908.79,0.68987084]
[1768063302996,0.19139072,909.78,908.8,0.68987084]
[1768063303296,0.19139072,909.78,908.81,0.68987084]
[1768063303495,0.19139072,909.78,908.73,2.077]
[1768063303496,0.19139072,909.78,908.82,0.68987084]
[1768063303796,0.19139072,909.78,908.83,0.68987084]
[1768063303994,0.19139072,909.78,908.84,0.68987084]
[1768063304192,0.19139072,909.78,908.85,0.68987084]
[1768063304393,0.19139072,909.78,908.86,0.68987084]
[1768063304612,0.19139072,909.78,908.73,2.077]
[1768063304795,0.19139072,909.78,908.74,0.68969436]
[1768063305094,0.19139072,909.78,908.75,0.68969436]
[1768063305397,0.19139072,909.78,908.76,0.68969436]
[1768063305595,0.19139072,909.78,908.77,0.68969436]
[1768063305792,0.19139072,909.78,908.78,0.68969436]
[1768063305997,0.19139072,909.78,908.79,0.68969436]
[1768063306195,0.19139072,909.78,908.8,0.68969436]
[1768063306495,0.19139072,909.78,908.81,0.68969436]
[1768063306697,0.19139072,909.78,908.73,2.077]
[1768063306698,0.19139072,909.78,908.82,0.68969436]
[1768063306899,0.19139072,909.78,908.83,0.68969436]
[1768063307097,0.19139072,909.78,908.84,0.68969436]
[1768063307296,0.19139072,909.78,908.85,0.68969436]
[1768063307499,0.19139072,909.78,908.86,0.68969436]
[1768063307797,0.19139072,909.78,908.73,2.077]
[1768063307998,0.19139072,909.78,908.74,0.68967973]
[1768063308196,0.19139072,909.78,908.75,0.68967973]
[1768063308497,0.19139072,909.78,908.76,0.68967973]
[1768063308700,0.19139072,909.78,908.77,0.68967973]
[1768063308898,0.19139072,909.78,908.78,0.68967973]
[1768063309096,0.19139072,909.78,908.79,0.68967973]
[1768063309301,0.19139072,909.78,908.8,0.68967973]
[1768063309502,0.19139072,909.78,908.81,0.68967973]
[1768063309703,0.19139072,909.78,908.82,0.68967973]
[1768063310002,0.19139072,909.78,908.83,0.68967973]
[1768063310302,0.19139072,909.78,908.84,0.68967973]
[1768063310502,0.19139072,909.78,908.85,0.68967973]
[1768063310702,0.19139072,909.78,908.86,0.68967973]
[1768063310903,0.19139072,909.78,908.87,0.68967973]
[1768063311100,0.19139072,909.78,908.73,2.077]
[1768063311305,0.19139072,909.78,908.74,0.68972914]
[1768063311500,0.19139072,909.78,908.75,0.68972914]
[1768063311805,0.19139072,909.78,908.76,0.68972914]
[1768063312005,0.19139072,909.78,908.77,0.68972914]
[1768063312205,0.19139072,909.78,908.78,0.68972914]
[1768063312504,0.19139072,909.78,908.79,0.68972914]
[1768063312700,0.19139072,909.78,908.8,0.68972914]
[1768063312901,0.19139072,909.78,908.81,0.68972914]
[1768063313101,0.19139072,909.78,908.82,0.68972914]
[1768063313303,0.19139072,909.78,908.83,0.68972914]
[1768063313506,0.19139072,909.78,908.84,0.68972914]
[1768063313705,0.19139072,909.78,908.85,0.68972914]
[1768063313903,0.19139072,909.78,908.86,0.68972914]
[1768063314104,0.19139072,909.78,908.73,2.077]
[1768063314304,0.19139072,909.78,908.74,0.68984295]
[1768063314506,0.19139072,909.78,908.75,0.68984295]
[1768063314706,0.19139072,909.78,908.76,0.68984295]
[1768063314907,0.19139072,909.78,908.77,0.68984295]
[1768063315106,0.19139072,909.78,908.73,2.077]
[1768063316406,0.19139072,909.78,908.74,0.68996745]
[1768063316605,0.19139072,909.78,908.75,0.68996745]
[1768063316805,0.19139072,909.78,908.76,0.68996745]
[1768063317104,0.19139072,909.78,908.77,0.68996745]
[1768063317304,0.19139072,909.78,908.78,0.68996745]
[1768063317506,0.19139072,909.78,908.79,0.68996745]
[1768063317707,0.19139072,909.78,908.8,0.68996745]
[1768063317905,0.19139072,909.78,908.81,0.68996745]
[1768063318104,0.19139072,909.78,908.82,0.68996745]
[1768063318309,0.19139072,909.78,908.83,0.68996745]
[1768063318509,0.19139072,909.78,908.84,0.68996745]
[1768063318710,0.19139072,909.78,908.85,0.68996745]
[1768063319009,0.19139072,909.78,908.73,2.077]
[1768063319211,0.19139072,909.78,908.74,0.690224]
[1768063319507,0.19139072,909.78,908.75,0.690224]
[1768063319711,0.19139072,909.78,908.76,0.690224]
[1768063319912,0.19139072,909.78,908.77,0.690224]
[1768063320108,0.19139072,909.78,908.78,0.690224]
[1768063320312,0.19139072,909.78,908.79,0.690224]
[1768063320511,0.19139072,909.78,908.8,0.690224]
[1768063320813,0.19139072,909.78,908.81,0.690224]
[1768063321113,0.19139072,909.78,908.82,0.690224]
[1768063321309,0.19139072,909.78,908.83,0.690224]
[1768063321509,0.19139072,909.78,908.84,0.690224]
[1768063321713,0.19139072,909.78,908.85,0.690224]
[1768063322013,0.19139072,909.78,908.86,0.690224]
[1768063322209,0.19139072,909.78,908.87,0.690224]
[1768063322409,0.19139072,909.78,908.88,0.690224]
[1768063322611,0.19139072,909.78,908.89,0.690224]
[1768063322809,0.19139072,909.78,908.9,0.690224]
[1768063323012,0.19139072,909.78,908.91,0.690224]
[1768063323213,0.19139072,909.78,908.92,0.690224]
[1768063323515,0.19139072,909.78,908.93,0.690224]
[1768063323716,0.19139072,909.78,908.94,0.690224]
[1768063323909,0.19139072,909.78,908.95,0.690224]
[1768063324214,0.19139072,909.78,908.96,0.690224]
[1768063324411,0.19139072,909.78,908.97,0.690224]
[1768063324616,0.19139072,909.78,908.98,0.690224]
[1768063324811,0.19139072,909.78,908.99,0.690224]
[1768063325117,0.19139072,909.78,909.0,0.690224]
[1768063325314,0.19139072,909.78,909.01,0.690224]
[1768063325509,0.19139072,909.78,908.73,2.077]
[1768063325715,0.19139072,909.78,908.74,0.69128484]
[1768063325916,0.19139072,909.78,908.75,0.69128484]
[1768063326111,0.19139072,909.78,908.76,0.69128484]
[1768063326313,0.19139072,909.78,908.77,0.69128484]
[1768063326510,0.19139072,909.78,908.78,4.80938761]
[1768063326715,0.19139072,909.78,908.79,0.69128484]
[1768063326916,0.19139072,909.78,908.8,0.69128484]
[1768063327114,0.19139072,909.78,908.81,0.69128484]
[1768063327314,0.19139072,909.78,908.82,0.69128484]
[1768063327618,0.19139072,909.78,908.83,0.69128484]
[1768063327918,0.19139072,909.78,908.84,0.69128484]
[1768063328218,0.19139072,909.78,908.85,0.69128484]
[1768063328417,0.19139072,909.78,908.86,0.69128484]
[1768063328619,0.19139072,909.78,908.87,0.69128484]
[1768063328814,0.19139072,909.78,908.88,0.69128484]
[1768063329020,0.19139072,909.78,908.89,0.69128484]
[1768063329222,0.19139072,909.78,908.9,0.69128484]
[1768063329417,0.19139072,909.78,908.91,0.69128484]
[1768063329719,0.19139072,909.78,908.92,0.69128484]
[1768063330016,0.19139072,909.78,908.93,0.69128484]
[1768063330216,0.19139072,909.78,908.94,0.69128484]
[1768063330415,0.19139072,909.78,908.95,0.69128484]
[1768063330617,0.19139072,909.78,908.96,0.69128484]
[1768063330819,0.19139072,909.78,908.97,0.69128484]
[1768063331020,0.19139072,909.78,908.98,0.69128484]
[1768063331220,0.19139072,909.78,908.99,0.69128484]
[1768063331421,0.19139072,909.78,909.0,0.69128484]
[1768063331618,0.19139072,909.78,909.01,0.69128484]
[1768063331818,0.19139072,909.78,909.02,0.69128484]